[Event "*** Titled Tuesday Blitz"]
[Site "Chess.com"]
[Date "2020.03.03"]
[Round "8"]
[White "FairChess_on_YouTube"]
[Black "rasmussvane"]
[Result "0-1"]
[WhiteElo "3031"]
[BlackElo "2887"]
[TimeControl "180+1"]
[EndTime "10:30:37 PST"]
[Termination "rasmussvane won on time"]

1. d4 {[%clk 0:03:00.9]} 1... d5 {[%clk 0:02:59.6]} 2. Nf3 {[%clk 0:03:00.1]}
2... Nf6 {[%clk 0:02:58.5]} 3. c4 {[%clk 0:03:00.4]} 3... e6 {[%clk 0:02:58.4]}
4. e3 {[%clk 0:03:00.7]} 4... a6 {[%clk 0:02:57.9]} 5. b3 {[%clk 0:02:59]} 5...
c5 {[%clk 0:02:58.2]} 6. Bb2 {[%clk 0:02:58.2]} 6... cxd4 {[%clk 0:02:57]} 7.
exd4 {[%clk 0:02:59.1]} 7... Be7 {[%clk 0:02:57.4]} 8. Nbd2 {[%clk 0:02:59.1]}
8... O-O {[%clk 0:02:57.2]} 9. Bd3 {[%clk 0:02:59.6]} 9... b6 {[%clk 0:02:34.3]}
10. O-O {[%clk 0:02:59.2]} 10... Bb7 {[%clk 0:02:34.1]} 11. Qe2 {[%clk
0:02:55.2]} 11... Nc6 {[%clk 0:02:31.4]} 12. Rad1 {[%clk 0:02:52.3]} 12... Rc8
{[%clk 0:02:25.4]} 13. Bb1 {[%clk 0:02:46.1]} 13... Bb4 {[%clk 0:02:04.5]} 14.
a3 {[%clk 0:02:37.3]} 14... Bd6 {[%clk 0:02:04.6]} 15. Ne5 {[%clk 0:02:35]}
15... Qe7 {[%clk 0:02:04.9]} 16. a4 {[%clk 0:02:23.7]} 16... Rfd8 {[%clk
0:01:55.2]} 17. Ndf3 {[%clk 0:02:19.8]} 17... h6 {[%clk 0:01:41.9]} 18. h3
{[%clk 0:02:17.5]} 18... dxc4 {[%clk 0:01:35.2]} 19. bxc4 {[%clk 0:02:15.7]}
19... Na5 {[%clk 0:01:35.6]} 20. Rfe1 {[%clk 0:01:46.8]} 20... Bxf3 {[%clk
0:01:31.3]} 21. Qxf3 {[%clk 0:01:46.3]} 21... Nxc4 {[%clk 0:01:25.4]} 22. Nxc4
{[%clk 0:01:45.8]} 22... Rxc4 {[%clk 0:01:26.3]} 23. d5 {[%clk 0:01:45.6]} 23...
e5 {[%clk 0:01:26.3]} 24. Qf5 {[%clk 0:01:37.9]} 24... Rf4 {[%clk 0:01:12.7]}
25. Qxf4 {[%clk 0:01:29]} 25... exf4 {[%clk 0:01:13.6]} 26. Rxe7 {[%clk
0:01:29]} 26... Bxe7 {[%clk 0:01:14.5]} 27. Ba2 {[%clk 0:01:25.4]} 27... Kf8
{[%clk 0:01:08]} 28. Bc4 {[%clk 0:01:24]} 28... b5 {[%clk 0:01:06.4]} 29. axb5
{[%clk 0:01:21.5]} 29... axb5 {[%clk 0:01:07.3]} 30. Bb3 {[%clk 0:01:21.9]}
30... Ne4 {[%clk 0:01:02.4]} 31. Bc2 {[%clk 0:01:12.4]} 31... Nc5 {[%clk
0:00:59.1]} 32. Bd4 {[%clk 0:01:01.5]} 32... Bd6 {[%clk 0:00:51.2]} 33. Rb1
{[%clk 0:00:53.6]} 33... Rb8 {[%clk 0:00:51]} 34. Bc3 {[%clk 0:00:53.9]} 34...
f6 {[%clk 0:00:48.5]} 35. Bg6 {[%clk 0:00:52]} 35... Nd7 {[%clk 0:00:45.3]} 36.
Bf5 {[%clk 0:00:48.1]} 36... Ne5 {[%clk 0:00:43.4]} 37. Kf1 {[%clk 0:00:38.8]}
37... b4 {[%clk 0:00:40.5]} 38. Bd2 {[%clk 0:00:38.7]} 38... Rb5 {[%clk
0:00:39.6]} 39. Be4 {[%clk 0:00:33.8]} 39... Nc4 {[%clk 0:00:38.6]} 40. Bc1
{[%clk 0:00:30.5]} 40... Ra5 {[%clk 0:00:36.4]} 41. Bd3 {[%clk 0:00:22.6]} 41...
Nb6 {[%clk 0:00:36.3]} 42. Bd2 {[%clk 0:00:18.3]} 42... Nxd5 {[%clk 0:00:35]}
43. Bc4 {[%clk 0:00:18.4]} 43... Nc3 {[%clk 0:00:33.7]} 44. Re1 {[%clk
0:00:12.5]} 44... Be5 {[%clk 0:00:31.2]} 45. g3 {[%clk 0:00:09.8]} 45... g5
{[%clk 0:00:22.6]} 46. gxf4 {[%clk 0:00:09.1]} 46... gxf4 {[%clk 0:00:23.5]} 47.
Kg2 {[%clk 0:00:07.8]} 47... Ra3 {[%clk 0:00:23.7]} 48. Rg1 {[%clk 0:00:06.1]}
48... b3 {[%clk 0:00:19.3]} 49. Bxc3 {[%clk 0:00:05.1]} 49... Bxc3 {[%clk
0:00:19]} 50. Kf3 {[%clk 0:00:05.6]} 50... b2 {[%clk 0:00:19.1]} 51. Ke4 {[%clk
0:00:05.8]} 51... Ra1 {[%clk 0:00:18]} 52. Rg8+ {[%clk 0:00:05.8]} 52... Ke7
{[%clk 0:00:18.3]} 53. Bd3 {[%clk 0:00:01.9]} 53... b1=Q {[%clk 0:00:18]} 54.
Bxb1 {[%clk 0:00:01.9]} 54... Rxb1 {[%clk 0:00:18.9]} 55. Kxf4 {[%clk
0:00:02.4]} 55... Rb2 {[%clk 0:00:16.7]} 56. Ke3 {[%clk 0:00:01.1]} 56... Rb5
{[%clk 0:00:16.3]} 57. f4 {[%clk 0:00:01.2]} 57... Rh5 {[%clk 0:00:15.2]} 58.
Kf3 {[%clk 0:00:01.7]} 58... Rxh3+ {[%clk 0:00:14.5]} 59. Kg4 {[%clk 0:00:02.2]}
59... Rh1 {[%clk 0:00:14.1]} 60. Kf5 {[%clk 0:00:02.7]} 60... h5 {[%clk
0:00:10.3]} 61. Rc8 {[%clk 0:00:02.9]} 61... Ba1 {[%clk 0:00:09.7]} 62. Rc7+
{[%clk 0:00:02.7]} 62... Kd6 {[%clk 0:00:09.5]} 63. Rh7 {[%clk 0:00:02.4]} 63...
h4 {[%clk 0:00:09.8]} 64. Kg4 {[%clk 0:00:02.5]} 64... Ke6 {[%clk 0:00:08.2]}
0-1

[Event "*** Titled Tuesday Blitz"]
[Site "Chess.com"]
[Date "2020.03.03"]
[Round "8"]
[White "Vugar_Manafov"]
[Black "Leonid_Starozhilov"]
[Result "0-1"]
[WhiteElo "2578"]
[BlackElo "2714"]
[TimeControl "180+1"]
[EndTime "10:30:40 PST"]
[Termination "Leonid_Starozhilov won on time"]

1. d4 {[%clk 0:03:00.9]} 1... Nf6 {[%clk 0:02:59.9]} 2. c4 {[%clk 0:03:00.7]}
2... g6 {[%clk 0:03:00.2]} 3. Nc3 {[%clk 0:03:00.7]} 3... Bg7 {[%clk 0:03:00.6]}
4. e4 {[%clk 0:03:00.5]} 4... d6 {[%clk 0:03:00.9]} 5. g3 {[%clk 0:03:00.8]}
5... O-O {[%clk 0:03:00.6]} 6. Bg2 {[%clk 0:03:01]} 6... c5 {[%clk 0:02:55]} 7.
Nge2 {[%clk 0:02:56.6]} 7... cxd4 {[%clk 0:02:47.5]} 8. Nxd4 {[%clk 0:02:55.5]}
8... Nc6 {[%clk 0:02:47]} 9. Nc2 {[%clk 0:02:45.5]} 9... Bg4 {[%clk 0:02:36.6]}
10. f3 {[%clk 0:02:42.5]} 10... Be6 {[%clk 0:02:36.8]} 11. Ne3 {[%clk
0:02:40.1]} 11... Ne5 {[%clk 0:02:27.7]} 12. b3 {[%clk 0:02:34.3]} 12... Qa5
{[%clk 0:02:19]} 13. Bd2 {[%clk 0:02:24.8]} 13... Nd3+ {[%clk 0:02:13.6]} 14.
Ke2 {[%clk 0:02:21.7]} 14... Ne5 {[%clk 0:02:09.5]} 15. Re1 {[%clk 0:02:02.6]}
15... a6 {[%clk 0:02:07.1]} 16. Kf1 {[%clk 0:01:58.6]} 16... Rfc8 {[%clk
0:02:01]} 17. Qe2 {[%clk 0:01:54.4]} 17... Qd8 {[%clk 0:01:34.9]} 18. Kg1 {[%clk
0:01:45.5]} 18... Nc6 {[%clk 0:01:23.3]} 19. Rad1 {[%clk 0:01:36.1]} 19... Nd7
{[%clk 0:01:19.1]} 20. Ned5 {[%clk 0:01:30.5]} 20... b5 {[%clk 0:00:50.6]} 21.
cxb5 {[%clk 0:01:26.5]} 21... Nd4 {[%clk 0:00:50.6]} 22. Qf2 {[%clk 0:01:24.1]}
22... Nxb5 {[%clk 0:00:47.5]} 23. Nxb5 {[%clk 0:01:13.5]} 23... axb5 {[%clk
0:00:48.4]} 24. Bg5 {[%clk 0:01:13.4]} 24... Bxd5 {[%clk 0:00:38.2]} 25. exd5
{[%clk 0:01:14.3]} 25... Bf6 {[%clk 0:00:38.6]} 26. Bxf6 {[%clk 0:01:02.9]}
26... exf6 {[%clk 0:00:31.9]} 27. Rd2 {[%clk 0:00:56.6]} 27... b4 {[%clk
0:00:25.3]} 28. Rde2 {[%clk 0:00:50.3]} 28... Qa5 {[%clk 0:00:22]} 29. Kh1
{[%clk 0:00:38.2]} 29... Nc5 {[%clk 0:00:21]} 30. Qd4 {[%clk 0:00:36.3]} 30...
Kg7 {[%clk 0:00:21.6]} 31. Bh3 {[%clk 0:00:33.9]} 31... Rc7 {[%clk 0:00:19.2]}
32. Bg4 {[%clk 0:00:29.1]} 32... h5 {[%clk 0:00:17]} 33. Bh3 {[%clk 0:00:28.5]}
33... Qb6 {[%clk 0:00:15.5]} 34. g4 {[%clk 0:00:22.4]} 34... hxg4 {[%clk
0:00:15.4]} 35. fxg4 {[%clk 0:00:23]} 35... Na4 {[%clk 0:00:14]} 36. Qf4 {[%clk
0:00:16.1]} 36... Rc3 {[%clk 0:00:09.6]} 37. Bg2 {[%clk 0:00:14.2]} 37... Nc5
{[%clk 0:00:07.9]} 38. Rf1 {[%clk 0:00:14.3]} 38... Qd8 {[%clk 0:00:07.8]} 39.
g5 {[%clk 0:00:14]} 39... f5 {[%clk 0:00:06.5]} 40. Qd4+ {[%clk 0:00:14.2]}
40... Kg8 {[%clk 0:00:07]} 41. Rfe1 {[%clk 0:00:13.1]} 41... Qf8 {[%clk
0:00:06.3]} 42. h4 {[%clk 0:00:10.6]} 42... Nd3 {[%clk 0:00:06.5]} 43. Rd1
{[%clk 0:00:09.1]} 43... Ne5 {[%clk 0:00:06.7]} 44. Qxb4 {[%clk 0:00:08.9]}
44... Rac8 {[%clk 0:00:07.3]} 45. Qf4 {[%clk 0:00:08.4]} 45... Rc2 {[%clk
0:00:06.6]} 46. Rxc2 {[%clk 0:00:07.8]} 46... Rxc2 {[%clk 0:00:07.5]} 47. h5
{[%clk 0:00:07.9]} 47... Qc8 {[%clk 0:00:07.1]} 48. h6 {[%clk 0:00:07.7]} 48...
Kh7 {[%clk 0:00:07.6]} 49. Qe3 {[%clk 0:00:05.9]} 49... Rc3 {[%clk 0:00:07.4]}
50. Qa7 {[%clk 0:00:05.2]} 50... Rc1 {[%clk 0:00:07.6]} 51. Rxc1 {[%clk
0:00:05.2]} 51... Qxc1+ {[%clk 0:00:08.5]} 52. Qg1 {[%clk 0:00:04.9]} 52... Qxg5
{[%clk 0:00:08.7]} 53. a4 {[%clk 0:00:03.3]} 53... Ng4 {[%clk 0:00:08.3]} 54.
Bf3 {[%clk 0:00:01.7]} 54... Qh4+ {[%clk 0:00:07.7]} 55. Kg2 {[%clk 0:00:02.1]}
55... Nxh6 {[%clk 0:00:07]} 56. a5 {[%clk 0:00:01.9]} 56... Qg5+ {[%clk
0:00:07]} 57. Kh1 {[%clk 0:00:01.7]} 57... Qh4+ {[%clk 0:00:07.2]} 58. Kg2
{[%clk 0:00:01.1]} 58... Qb4 {[%clk 0:00:07.9]} 0-1

[Event "*** Titled Tuesday Blitz"]
[Site "Chess.com"]
[Date "2020.03.03"]
[Round "8"]
[White "Shant_Sargsyan"]
[Black "Volodar_Murzin"]
[Result "1/2-1/2"]
[WhiteElo "2993"]
[BlackElo "2694"]
[TimeControl "180+1"]
[EndTime "10:30:45 PST"]
[Termination "Game drawn by repetition"]

1. d4 {[%clk 0:03:00.7]} 1... d5 {[%clk 0:02:58.9]} 2. c4 {[%clk 0:03:01.1]}
2... c6 {[%clk 0:02:58.4]} 3. cxd5 {[%clk 0:03:01.8]} 3... cxd5 {[%clk
0:02:58.4]} 4. Bf4 {[%clk 0:03:02.5]} 4... Nc6 {[%clk 0:02:57.8]} 5. e3 {[%clk
0:03:03.3]} 5... e6 {[%clk 0:02:56.1]} 6. Nc3 {[%clk 0:03:03]} 6... Bd6 {[%clk
0:02:56.3]} 7. Bxd6 {[%clk 0:03:03.3]} 7... Qxd6 {[%clk 0:02:56.5]} 8. f4 {[%clk
0:03:03.9]} 8... Nge7 {[%clk 0:02:55.9]} 9. Bd3 {[%clk 0:03:04.3]} 9... Bd7
{[%clk 0:02:51.6]} 10. Nf3 {[%clk 0:03:04.8]} 10... f6 {[%clk 0:02:51]} 11. O-O
{[%clk 0:03:04.8]} 11... O-O {[%clk 0:02:51]} 12. a3 {[%clk 0:03:05.1]} 12...
Be8 {[%clk 0:02:51.1]} 13. Nh4 {[%clk 0:03:00.9]} 13... Rc8 {[%clk 0:02:50.2]}
14. Qc2 {[%clk 0:02:56.7]} 14... g6 {[%clk 0:02:43.8]} 15. Qf2 {[%clk
0:02:53.9]} 15... Bf7 {[%clk 0:02:43]} 16. Nf3 {[%clk 0:02:48.7]} 16... Nf5
{[%clk 0:02:34.9]} 17. g4 {[%clk 0:02:47.9]} 17... Ng7 {[%clk 0:02:35.5]} 18. g5
{[%clk 0:02:48.2]} 18... fxg5 {[%clk 0:02:28.5]} 19. Nxg5 {[%clk 0:02:47.1]}
19... Nf5 {[%clk 0:02:28.5]} 20. Nf3 {[%clk 0:02:42.7]} 20... a6 {[%clk
0:02:23.8]} 21. Kh1 {[%clk 0:02:42.7]} 21... Kh8 {[%clk 0:02:22.7]} 22. Rg1
{[%clk 0:02:42.5]} 22... Rg8 {[%clk 0:02:23.2]} 23. Rg5 {[%clk 0:02:32.6]} 23...
Rg7 {[%clk 0:02:22.1]} 24. Rag1 {[%clk 0:02:32.9]} 24... Rcg8 {[%clk 0:02:20.9]}
25. h4 {[%clk 0:02:32.8]} 25... Be8 {[%clk 0:02:14.6]} 26. h5 {[%clk 0:02:18.1]}
26... Qe7 {[%clk 0:02:05.3]} 27. Bxf5 {[%clk 0:02:07.7]} 27... gxf5 {[%clk
0:02:03.1]} 28. h6 {[%clk 0:01:48.2]} 28... Rxg5 {[%clk 0:01:49.9]} 29. Rxg5
{[%clk 0:01:47.1]} 29... Qf6 {[%clk 0:01:45.9]} 30. Qh4 {[%clk 0:01:46.3]} 30...
Rg6 {[%clk 0:01:39.6]} 31. Rxg6 {[%clk 0:01:41.1]} 31... Qxg6 {[%clk 0:01:38.8]}
32. Ng5 {[%clk 0:01:37.6]} 32... Kg8 {[%clk 0:01:31.4]} 33. Kg1 {[%clk
0:01:36.8]} 33... Nd8 {[%clk 0:01:26.6]} 34. Kf2 {[%clk 0:01:35]} 34... Nf7
{[%clk 0:01:25.9]} 35. Nxf7 {[%clk 0:01:33.3]} 35... Kxf7 {[%clk 0:01:26.2]} 36.
Ne2 {[%clk 0:01:27.2]} 36... Qf6 {[%clk 0:01:24.4]} 37. Qh1 {[%clk 0:01:23.4]}
37... Ke7 {[%clk 0:01:20.6]} 38. Ng1 {[%clk 0:01:17.4]} 38... b6 {[%clk
0:00:52.2]} 39. Nf3 {[%clk 0:01:17.4]} 39... a5 {[%clk 0:00:52.7]} 40. Ne5
{[%clk 0:01:13.1]} 40... Kd6 {[%clk 0:00:50.4]} 41. Ke1 {[%clk 0:01:11.7]} 41...
Kc7 {[%clk 0:00:23.9]} 42. Kd2 {[%clk 0:01:11.8]} 42... Kb7 {[%clk 0:00:24.5]}
43. b3 {[%clk 0:01:01.8]} 43... Qf8 {[%clk 0:00:21.5]} 44. a4 {[%clk 0:00:47.9]}
44... b5 {[%clk 0:00:18.7]} 45. axb5 {[%clk 0:00:48.1]} 45... Qb4+ {[%clk
0:00:18.6]} 46. Kc2 {[%clk 0:00:44.9]} 46... a4 {[%clk 0:00:18.4]} 47. bxa4
{[%clk 0:00:35.6]} 47... Qxa4+ {[%clk 0:00:18.3]} 48. Kd2 {[%clk 0:00:19.1]}
48... Qa2+ {[%clk 0:00:18]} 49. Kc3 {[%clk 0:00:18.3]} 49... Qa3+ {[%clk
0:00:17.4]} 50. Kc2 {[%clk 0:00:18]} 50... Qxe3 {[%clk 0:00:16.3]} 51. Qh4
{[%clk 0:00:16.7]} 51... Qe2+ {[%clk 0:00:15.8]} 52. Kc3 {[%clk 0:00:16.8]}
52... Qe3+ {[%clk 0:00:11.9]} 53. Nd3 {[%clk 0:00:14.6]} 53... Bxb5 {[%clk
0:00:11.8]} 54. Qe7+ {[%clk 0:00:14.9]} 54... Ka6 {[%clk 0:00:10.6]} 55. Qd6+
{[%clk 0:00:14.6]} 55... Ka5 {[%clk 0:00:09.7]} 56. Qc7+ {[%clk 0:00:13.1]}
56... Ka6 {[%clk 0:00:09.4]} 57. Qc8+ {[%clk 0:00:12.4]} 57... Kb6 {[%clk
0:00:08.8]} 58. Qb8+ {[%clk 0:00:10.5]} 58... Kc6 {[%clk 0:00:07.6]} 59. Qc8+
{[%clk 0:00:09.6]} 59... Kb6 {[%clk 0:00:07.4]} 60. Qd8+ {[%clk 0:00:06.6]}
60... Ka6 {[%clk 0:00:07.1]} 61. Qa8+ {[%clk 0:00:06.7]} 61... Kb6 {[%clk
0:00:06.9]} 62. Qb8+ {[%clk 0:00:07.6]} 62... Kc6 {[%clk 0:00:07]} 63. Qc8+
{[%clk 0:00:06.8]} 63... Kb6 {[%clk 0:00:07.4]} 1/2-1/2

[Event "*** Titled Tuesday Blitz"]
[Site "Chess.com"]
[Date "2020.03.03"]
[Round "8"]
[White "hongnhung1234"]
[Black "HouseOfDurin"]
[Result "1-0"]
[WhiteElo "2241"]
[BlackElo "2088"]
[TimeControl "180+1"]
[EndTime "10:30:50 PST"]
[Termination "hongnhung1234 won by checkmate"]

1. e4 {[%clk 0:03:00.9]} 1... c5 {[%clk 0:02:59.9]} 2. Nc3 {[%clk 0:02:59.7]}
2... Nc6 {[%clk 0:03:00.1]} 3. f4 {[%clk 0:03:00]} 3... e5 {[%clk 0:03:00.5]} 4.
f5 {[%clk 0:02:52.3]} 4... g6 {[%clk 0:02:55.1]} 5. fxg6 {[%clk 0:02:51.5]} 5...
hxg6 {[%clk 0:02:52.9]} 6. Nf3 {[%clk 0:02:51.6]} 6... Nge7 {[%clk 0:02:39.8]}
7. Bc4 {[%clk 0:02:50]} 7... Bg7 {[%clk 0:02:19.7]} 8. d3 {[%clk 0:02:48.7]}
8... d6 {[%clk 0:02:13]} 9. Bg5 {[%clk 0:02:47.6]} 9... Be6 {[%clk 0:02:12.6]}
10. Nd5 {[%clk 0:02:43.7]} 10... Bxd5 {[%clk 0:01:59.4]} 11. exd5 {[%clk
0:02:40.3]} 11... Nd4 {[%clk 0:01:59.3]} 12. Nxd4 {[%clk 0:02:38.7]} 12... cxd4
{[%clk 0:02:00.2]} 13. Bb5+ {[%clk 0:02:36.7]} 13... Kf8 {[%clk 0:01:58.9]} 14.
Bc4 {[%clk 0:02:07.9]} 14... b5 {[%clk 0:01:52.4]} 15. Bb3 {[%clk 0:02:06.4]}
15... Bh6 {[%clk 0:01:35.7]} 16. Bf6 {[%clk 0:01:48.7]} 16... Qa5+ {[%clk
0:01:34.3]} 17. Ke2 {[%clk 0:01:34.5]} 17... Bg7 {[%clk 0:01:33]} 18. Bg5 {[%clk
0:01:25.1]} 18... f6 {[%clk 0:01:24.8]} 19. Bd2 {[%clk 0:01:24.5]} 19... Qc7
{[%clk 0:01:14.7]} 20. a4 {[%clk 0:01:20.4]} 20... bxa4 {[%clk 0:00:57.2]} 21.
Rxa4 {[%clk 0:01:21.3]} 21... Qd7 {[%clk 0:00:49.2]} 22. Kf2 {[%clk 0:01:00.9]}
22... Bh6 {[%clk 0:00:31.6]} 23. Bb4 {[%clk 0:00:27.9]} 23... Be3+ {[%clk
0:00:29.2]} 24. Ke1 {[%clk 0:00:27.7]} 24... Kg7 {[%clk 0:00:22]} 25. Ra6 {[%clk
0:00:26.9]} 25... Nf5 {[%clk 0:00:14.7]} 26. Qg4 {[%clk 0:00:19.1]} 26... Rh4
{[%clk 0:00:13.8]} 27. Qf3 {[%clk 0:00:18.6]} 27... Rah8 {[%clk 0:00:12.5]} 28.
h3 {[%clk 0:00:18]} 28... Qb5 {[%clk 0:00:08.3]} 29. Ra4 {[%clk 0:00:16.6]}
29... a6 {[%clk 0:00:06.4]} 30. Ke2 {[%clk 0:00:14.9]} 30... Rf4 {[%clk
0:00:06.3]} 31. Qxf4 {[%clk 0:00:13.5]} 31... Bxf4 {[%clk 0:00:06]} 32. Ba3
{[%clk 0:00:12.5]} 32... Ng3+ {[%clk 0:00:05.8]} 33. Kf3 {[%clk 0:00:12.2]}
33... Qxa4 {[%clk 0:00:05.5]} 34. Bxa4 {[%clk 0:00:12]} 34... Nxh1 {[%clk
0:00:06.4]} 35. Bxd6 {[%clk 0:00:12.3]} 35... Ng3 {[%clk 0:00:05.6]} 36. Bc5
{[%clk 0:00:11.3]} 36... Nf5 {[%clk 0:00:05.6]} 37. Bd7 {[%clk 0:00:09.7]} 37...
Rd8 {[%clk 0:00:05.1]} 38. Bc6 {[%clk 0:00:07.8]} 38... Rb8 {[%clk 0:00:04.6]}
39. g4 {[%clk 0:00:07.6]} 39... Ne3 {[%clk 0:00:02]} 40. d6 {[%clk 0:00:07.2]}
40... Nxc2 {[%clk 0:00:01.9]} 41. d7 {[%clk 0:00:07.1]} 41... Rd8 {[%clk
0:00:02.4]} 42. Be7 {[%clk 0:00:06.8]} 42... Rxd7 {[%clk 0:00:02.9]} 43. Bxd7
{[%clk 0:00:07.7]} 43... Nb4 {[%clk 0:00:03.2]} 44. Bxb4 {[%clk 0:00:07.4]}
44... Be3 {[%clk 0:00:02.5]} 45. Bc8 {[%clk 0:00:07.5]} 45... Kf7 {[%clk
0:00:01.6]} 46. Bxa6 {[%clk 0:00:07.5]} 46... f5 {[%clk 0:00:02.4]} 47. Bc4+
{[%clk 0:00:07.9]} 47... Kf6 {[%clk 0:00:02.5]} 48. Bd6 {[%clk 0:00:07.3]} 48...
e4+ {[%clk 0:00:02.3]} 49. dxe4 {[%clk 0:00:06.9]} 49... fxe4+ {[%clk
0:00:03.2]} 50. Kxe4 {[%clk 0:00:07.3]} 50... Kg5 {[%clk 0:00:04.1]} 51. Be7+
{[%clk 0:00:06.6]} 51... Kh6 {[%clk 0:00:03.7]} 52. Bf6 {[%clk 0:00:06.6]} 52...
Bg1 {[%clk 0:00:03.6]} 53. Bxd4 {[%clk 0:00:06.4]} 53... Bh2 {[%clk 0:00:04.2]}
54. Be3+ {[%clk 0:00:06.5]} 54... Kh7 {[%clk 0:00:04.8]} 55. b4 {[%clk
0:00:06.9]} 55... Bb8 {[%clk 0:00:05.5]} 56. b5 {[%clk 0:00:07.1]} 56... Kg7
{[%clk 0:00:04.9]} 57. b6 {[%clk 0:00:07.4]} 57... g5 {[%clk 0:00:05.2]} 58.
Bxg5 {[%clk 0:00:07.3]} 58... Kh7 {[%clk 0:00:05.5]} 59. b7 {[%clk 0:00:07.1]}
59... Kg6 {[%clk 0:00:06.4]} 60. Bf4 {[%clk 0:00:07.4]} 60... Ba7 {[%clk
0:00:06.5]} 61. b8=Q {[%clk 0:00:06.7]} 61... Bxb8 {[%clk 0:00:07]} 62. Bxb8
{[%clk 0:00:07.6]} 62... Kf6 {[%clk 0:00:07.6]} 63. Be5+ {[%clk 0:00:07.9]}
63... Kg6 {[%clk 0:00:08.5]} 64. h4 {[%clk 0:00:08.1]} 64... Kh6 {[%clk
0:00:09.1]} 65. Bf4+ {[%clk 0:00:08.1]} 65... Kg6 {[%clk 0:00:10]} 66. Be6
{[%clk 0:00:07.1]} 66... Kg7 {[%clk 0:00:10.9]} 67. Bf5 {[%clk 0:00:07.4]} 67...
Kf6 {[%clk 0:00:09.7]} 68. g5+ {[%clk 0:00:08.3]} 68... Kf7 {[%clk 0:00:10]} 69.
h5 {[%clk 0:00:09]} 69... Kg7 {[%clk 0:00:10.9]} 70. h6+ {[%clk 0:00:09.3]}
70... Kf7 {[%clk 0:00:11.8]} 71. g6+ {[%clk 0:00:09.6]} 71... Ke7 {[%clk
0:00:12.7]} 72. Bg5+ {[%clk 0:00:09.6]} 72... Kf8 {[%clk 0:00:12.9]} 73. g7+
{[%clk 0:00:09.1]} 73... Kg8 {[%clk 0:00:13.8]} 74. Be6+ {[%clk 0:00:09.1]}
74... Kh7 {[%clk 0:00:13.9]} 75. g8=Q# {[%clk 0:00:09.5]} 1-0

[Event "*** Titled Tuesday Blitz"]
[Site "Chess.com"]
[Date "2020.03.03"]
[Round "9"]
[White "Shant_Sargsyan"]
[Black "RitvarsReimanis"]
[Result "1-0"]
[WhiteElo "2995"]
[BlackElo "2627"]
[TimeControl "180+1"]
[EndTime "10:38:57 PST"]
[Termination "Shant_Sargsyan won by resignation"]

1. e4 {[%clk 0:03:00.7]} 1... c5 {[%clk 0:02:59.6]} 2. Nc3 {[%clk 0:03:01.6]}
2... Nc6 {[%clk 0:02:59.6]} 3. Nf3 {[%clk 0:03:01.9]} 3... Nf6 {[%clk
0:02:59.6]} 4. Bb5 {[%clk 0:03:01.7]} 4... Nd4 {[%clk 0:02:53.8]} 5. e5 {[%clk
0:03:02]} 5... Nxb5 {[%clk 0:02:45.3]} 6. Nxb5 {[%clk 0:03:02.9]} 6... Nd5
{[%clk 0:02:44.3]} 7. Ng5 {[%clk 0:03:03.4]} 7... e6 {[%clk 0:02:23.8]} 8. Ne4
{[%clk 0:03:03.3]} 8... Be7 {[%clk 0:02:19.3]} 9. c4 {[%clk 0:03:03.5]} 9... Nf4
{[%clk 0:02:16]} 10. Nbd6+ {[%clk 0:03:03.7]} 10... Kf8 {[%clk 0:02:15.9]} 11.
O-O {[%clk 0:03:04.6]} 11... Ng6 {[%clk 0:02:08.2]} 12. d4 {[%clk 0:03:05.2]}
12... f5 {[%clk 0:02:08.2]} 13. exf6 {[%clk 0:03:04.3]} 13... Bxf6 {[%clk
0:02:08.5]} 14. Nxf6 {[%clk 0:03:04.5]} 14... Qxf6 {[%clk 0:02:09.4]} 15. dxc5
{[%clk 0:03:05.1]} 15... Ke7 {[%clk 0:02:02.1]} 16. Qh5 {[%clk 0:03:03.4]} 16...
h6 {[%clk 0:02:01]} 17. Be3 {[%clk 0:03:03.5]} 17... Rf8 {[%clk 0:01:56.1]} 18.
Rad1 {[%clk 0:02:59.3]} 18... Nf4 {[%clk 0:01:54.9]} 19. Bxf4 {[%clk 0:02:58.8]}
19... Qxf4 {[%clk 0:01:54.9]} 20. c6 {[%clk 0:02:56.1]} 20... dxc6 {[%clk
0:01:46.7]} 21. Qc5 {[%clk 0:02:56.4]} 21... Kf6 {[%clk 0:01:41]} 22. Rd3 {[%clk
0:02:56.3]} 22... b6 {[%clk 0:01:26]} 23. Qxc6 {[%clk 0:02:55.8]} 1-0

[Event "*** Titled Tuesday Blitz"]
[Site "Chess.com"]
[Date "2020.03.03"]
[Round "9"]
[White "sganerdene"]
[Black "124chess"]
[Result "0-1"]
[WhiteElo "2668"]
[BlackElo "2490"]
[TimeControl "180+1"]
[EndTime "10:39:39 PST"]
[Termination "124chess won by resignation"]

1. b3 {[%clk 0:03:00.9]} 1... d5 {[%clk 0:02:59.4]} 2. Bb2 {[%clk 0:03:01.8]}
2... Bf5 {[%clk 0:03:00]} 3. Nf3 {[%clk 0:03:02.1]} 3... e6 {[%clk 0:02:59]} 4.
g3 {[%clk 0:03:02.6]} 4... Nf6 {[%clk 0:02:59]} 5. Bg2 {[%clk 0:03:03]} 5... Be7
{[%clk 0:02:58.9]} 6. O-O {[%clk 0:03:03.2]} 6... O-O {[%clk 0:02:59.5]} 7. d3
{[%clk 0:03:03.7]} 7... c5 {[%clk 0:02:59.8]} 8. Nbd2 {[%clk 0:03:04.3]} 8...
Nc6 {[%clk 0:03:00]} 9. Qe1 {[%clk 0:03:04.7]} 9... Qc7 {[%clk 0:02:58.4]} 10.
a3 {[%clk 0:03:04.8]} 10... h6 {[%clk 0:02:57.3]} 11. e4 {[%clk 0:03:05.1]}
11... Bh7 {[%clk 0:02:56.8]} 12. Qe3 {[%clk 0:03:01.2]} 12... d4 {[%clk
0:02:56.1]} 13. Qe2 {[%clk 0:03:01.2]} 13... e5 {[%clk 0:02:56.4]} 14. Nh4
{[%clk 0:03:00.8]} 14... a5 {[%clk 0:02:50.3]} 15. Nf5 {[%clk 0:03:00.6]} 15...
a4 {[%clk 0:02:50.6]} 16. f4 {[%clk 0:02:55.6]} 16... axb3 {[%clk 0:02:49.7]}
17. cxb3 {[%clk 0:02:55.9]} 17... exf4 {[%clk 0:02:48.8]} 18. Nxe7+ {[%clk
0:02:54.6]} 18... Qxe7 {[%clk 0:02:47.2]} 19. gxf4 {[%clk 0:02:55]} 19... Nd5
{[%clk 0:02:47.4]} 20. Nc4 {[%clk 0:02:49.4]} 20... b5 {[%clk 0:02:46.8]} 21.
Ne5 {[%clk 0:02:44.4]} 21... Nxf4 {[%clk 0:02:38.2]} 22. Rxf4 {[%clk 0:02:42.8]}
22... Nxe5 {[%clk 0:02:33.9]} 23. Raf1 {[%clk 0:02:42.6]} 23... Qe6 {[%clk
0:02:23.8]} 24. Qc2 {[%clk 0:02:39.2]} 24... Rac8 {[%clk 0:02:22.6]} 25. a4
{[%clk 0:02:32.5]} 25... bxa4 {[%clk 0:02:17.5]} 26. bxa4 {[%clk 0:02:32.3]}
26... Rfd8 {[%clk 0:02:18.1]} 27. Rh4 {[%clk 0:02:26.7]} 27... Bg6 {[%clk
0:02:13.3]} 28. Bh3 {[%clk 0:02:25.2]} 28... Qe7 {[%clk 0:02:13.9]} 29. Rhf4
{[%clk 0:02:06.7]} 29... Rc6 {[%clk 0:02:12.9]} 30. Ba3 {[%clk 0:02:06.5]} 30...
Qg5+ {[%clk 0:02:12.2]} 31. Kh1 {[%clk 0:02:06.4]} 31... c4 {[%clk 0:02:11.8]}
32. dxc4 {[%clk 0:02:03.3]} 32... Rxc4 {[%clk 0:02:11.7]} 33. Qb3 {[%clk
0:01:53.8]} 33... Rc3 {[%clk 0:02:11.1]} 34. Qb4 {[%clk 0:01:49.1]} 34... Rxh3
{[%clk 0:02:10]} 0-1